fUST/lending_fUST_20240809
["ID","MTS","AMOUNT","RATE_DAILY","PERIOD"]
[334541334,1723179045311,-3000.0,0.000271,2]
[334541336,1723179045320,-3000.0,0.0002711,2]
[334541338,1723179045329,-3000.0,0.0002712,2]
[334541340,1723179045338,-3000.0,0.0002713,2]
[334541342,1723179045349,-160.0,0.00027131,7]
[334541344,1723179045358,-164.76527864,0.00027131,5]
[334541346,1723179045367,-160.0,0.00027131,5]
[334541348,1723179045376,-160.0,0.00027131,5]
[334541350,1723179045386,-3000.0,0.0002714,2]
[334541353,1723179045395,-3000.0,0.0002715,2]
[334541355,1723179045404,-3000.0,0.0002716,2]
[334541357,1723179045414,-3000.0,0.0002717,2]
[334541359,1723179045423,-3000.0,0.0002718,2]
[334541361,1723179045433,-326.0,0.00027185,2]
[334541363,1723179045442,-3000.0,0.0002719,2]
[334541365,1723179045451,-500.0,0.00027195,2]
[334541367,1723179045461,-3000.0,0.000272,2]
[334541369,1723179045471,-3000.0,0.0002721,2]
[334541371,1723179045480,-3000.0,0.0002722,2]
[334541373,1723179045489,-3000.0,0.0002723,2]
[334541375,1723179045499,-151.0,0.0002724,7]
[334541376,1723179045508,-263.368071,0.0002724,2]
[334541378,1723179045517,-151.0,0.0002724,7]
[334541380,1723179045526,-151.0,0.0002724,7]
[334541382,1723179045535,-3000.0,0.0002724,2]
[334541384,1723179045545,-290.519129,0.0002725,7]
[334541386,1723179045554,-290.519129,0.0002725,7]
[334541388,1723179045564,-151.0,0.0002725,7]
[334541390,1723179045573,-151.0,0.0002725,7]
[334541393,1723179045582,-3000.0,0.0002725,2]
[334541394,1723179045592,-151.0,0.0002726,7]
[334541396,1723179045602,-3000.0,0.0002726,2]
[334541398,1723179045611,-3000.0,0.0002727,2]
[334541400,1723179045620,-3000.0,0.0002728,2]
[334541402,1723179045630,-3000.0,0.0002729,2]
[334541405,1723179045639,-2000.0,0.00027297,2]
[334541407,1723179045649,-3461.249803,0.000273,2]
[334541409,1723179045659,-156.0,0.0002732,17]
[334541411,1723179045668,-305.70460199,0.0002739,2]
[334541413,1723179045677,-163.905472,0.00027396,7]
[334541415,1723179045687,-503.37446145,0.00027397,7]
[334541417,1723179045696,-610.36450833,0.00027397,7]
[334541418,1723179045705,-502.56730305,0.00027397,7]
[334541420,1723179045715,-501.99673739,0.00027397,7]
[334541422,1723179045727,-500.0,0.00027397,7]
[334541424,1723179045737,-500.15505334,0.00027397,7]
[334541426,1723179045748,-500.0,0.00027397,7]
[334541429,1723179045758,-500.0,0.00027397,2]
[334541431,1723179045769,-500.0,0.00027397,7]
[334541433,1723179045779,-500.0,0.00027397,7]
[334541435,1723179045789,-500.0,0.00027397,7]
[334541437,1723179045798,-500.0,0.00027397,7]
[334541439,1723179045808,-509.41383,0.00027397,7]
[334541441,1723179045817,-505.73070899,0.00027397,7]
[334541443,1723179045827,-500.0,0.00027397,7]
[334541444,1723179045836,-646.07888611,0.00027397,7]
[334541445,1723179045846,-500.0,0.00027397,7]
[334541446,1723179045855,-500.0,0.00027397,7]
[334541447,1723179045864,-505.19639206,0.00027397,7]
[334541448,1723179045873,-738.31,0.00027397,7]
[334541449,1723179045883,-505.75771226,0.00027397,7]
[334541450,1723179045892,-501.45752607,0.00027397,7]
[334541451,1723179045901,-500.0,0.00027397,7]
[334541452,1723179045910,-502.50116967,0.00027397,7]
[334541453,1723179045920,-505.22737451,0.00027397,7]
[334541454,1723179045930,-501.70243563,0.00027397,7]
[334541455,1723179045939,-505.08188763,0.00027397,7]
[334541456,1723179045949,-503.96984952,0.00027397,7]
[334541457,1723179045964,-503.00001452,0.00027397,7]
[334541458,1723179045976,-505.02754684,0.00027397,7]
[334541459,1723179045985,-504.65345115,0.00027397,7]
[334541460,1723179045995,-500.0,0.00027397,7]
[334541461,1723179046004,-501.07225668,0.00027397,5]
[334541462,1723179046014,-501.58370241,0.00027397,7]
[334541463,1723179046024,-502.7216176,0.00027397,7]
[334541464,1723179046035,-429.93071138,0.00027397,7]
[334541465,1723179046047,-500.0,0.00027397,7]
[334541466,1723179046059,-500.0,0.00027397,7]
[334541467,1723179046068,-151.0,0.00027397,7]
[334541468,1723179046078,-152.069158,0.00027397,7]
[334541469,1723179046087,-500.0,0.00027397,7]
[334541470,1723179046096,-500.0,0.00027397,7]
[334541471,1723179046106,-500.0,0.00027397,7]
[334541472,1723179046117,-500.0,0.00027397,7]
[334541473,1723179046127,-503.21576415,0.00027397,7]
[334541474,1723179046136,-503.07080594,0.00027397,7]
[334541475,1723179046145,-506.70257291,0.00027397,7]
[334541476,1723179046155,-517.73304598,0.00027397,7]
[334541477,1723179046164,-503.11790601,0.00027397,7]
[334541478,1723179046174,-500.0,0.00027397,7]
[334541479,1723179046183,-513.56464599,0.00027397,7]
[334541480,1723179046193,-500.0,0.00027397,7]
[334541481,1723179046203,-500.0,0.00027397,7]
[334541482,1723179046212,-501.29762935,0.00027397,7]
[334541483,1723179046224,-502.38889473,0.00027397,7]
[334541484,1723179046234,-500.0,0.00027397,7]
[334541485,1723179046243,-500.0,0.00027397,7]
[334541486,1723179046253,-500.0,0.00027397,7]
[334541487,1723179046263,-322.48660577,0.00027397,7]
[334541488,1723179046275,-500.0,0.00027397,7]
[334541489,1723179046285,-500.0,0.00027397,7]
[334541490,1723179046295,-500.0,0.00027397,7]
[334541491,1723179046305,-500.86190681,0.00027397,7]
[334541492,1723179046314,-500.0,0.00027397,7]
[334541493,1723179046324,-501.89585389,0.00027397,7]
[334541494,1723179046334,-500.0,0.00027397,7]
[334541495,1723179046344,-500.0,0.00027397,7]
[334541496,1723179046354,-500.0,0.00027397,7]
[334541497,1723179046363,-1190.14768425,0.00027397,2]
[334541498,1723179046373,-500.0,0.00027397,7]
[334541499,1723179046384,-500.0,0.00027397,7]
[334541500,1723179046394,-500.0,0.00027397,7]
[334541501,1723179046403,-500.0,0.00027397,7]
[334541502,1723179046412,-531.59,0.00027397,7]
[334541503,1723179046422,-500.0,0.00027397,7]
[334541504,1723179046431,-500.0,0.00027397,7]
[334541505,1723179046441,-500.0,0.00027397,7]
[334541506,1723179046450,-503.15801424,0.00027397,7]
[334541508,1723179046460,-500.0,0.00027397,7]
[334541510,1723179046471,-500.0,0.00027397,7]
[334541512,1723179046482,-503.46447349,0.00027397,7]
[334541514,1723179046491,-718.76,0.00027397,7]
[334541516,1723179046500,-500.0,0.00027397,7]
[334541517,1723179046510,-500.0,0.00027397,7]
[334541518,1723179046519,-640.33462914,0.00027397,7]
[334541520,1723179046529,-500.0,0.00027397,2]
[334541522,1723179046539,-503.748874,0.00027397,7]
[334541524,1723179046549,-500.0,0.00027397,7]
[334541526,1723179046558,-510.66453993,0.00027397,7]
[334541528,1723179046567,-500.0,0.00027397,7]
[334541530,1723179046576,-503.59885118,0.00027397,7]
[334541532,1723179046585,-633.32560901,0.00027397,7]
[334541534,1723179046595,-506.89642407,0.00027397,7]
[334541536,1723179046605,-500.0,0.00027397,7]
[334541538,1723179046615,-500.0,0.00027397,7]
[334541540,1723179046625,-504.81840076,0.00027397,7]
[334541541,1723179046635,-506.73271009,0.00027397,7]
[334541543,1723179046645,-503.56290974,0.00027397,7]
[334541545,1723179046655,-504.06408991,0.00027397,7]
[334541547,1723179046664,-500.0,0.00027397,7]
[334541549,1723179046674,-504.87536699,0.00027397,7]
[334541551,1723179046684,-500.0,0.00027397,7]
[334541553,1723179046694,-500.0,0.00027397,7]
[334541555,1723179046703,-500.0,0.00027397,7]
[334541557,1723179046713,-652.57,0.00027397,7]
[334541559,1723179046724,-404.23839521,0.00027397,7]
[334541561,1723179046733,-231.0427242,0.00027397,7]
[334541562,1723179046743,-506.74868527,0.00027397,7]
[334541564,1723179046752,-503.56423679,0.00027397,7]
[334541566,1723179046762,-529.6297699,0.00027397,7]
[334541568,1723179046771,-504.05103996,0.00027397,7]
[334541570,1723179046781,-501.12309305,0.00027397,7]
[334541572,1723179046791,-500.0,0.00027397,7]
[334541573,1723179046801,-151.0,0.00027397,7]
[334541575,1723179046810,-506.24485707,0.00027397,7]
[334541577,1723179046819,-500.0,0.00027397,7]
[334541582,1723179046830,-559.76,0.00027397,7]
[334541584,1723179046871,-500.0,0.00027397,7]
[334541585,1723179046880,-500.0,0.00027397,7]
[334541586,1723179046890,-503.42778909,0.00027397,7]
[334541587,1723179046901,-500.0,0.00027397,7]
[334541588,1723179046911,-503.73910756,0.00027397,7]
[334541589,1723179046921,-507.07922494,0.00027397,7]
[334541590,1723179046931,-502.23171803,0.00027397,7]
[334541591,1723179046941,-503.14794682,0.00027397,7]
[334541592,1723179046952,-505.2933713,0.00027397,7]
[334541593,1723179046965,-505.33,0.00027397,7]
[334541594,1723179046978,-500.0,0.00027397,7]
[334541595,1723179046987,-500.0,0.00027397,7]
[334541596,1723179046999,-503.51737208,0.00027397,7]
[334541597,1723179047008,-500.0,0.00027397,7]
[334541598,1723179047018,-500.0,0.00027397,7]
[334541599,1723179047028,-339.49360579,0.00027397,7]
[334541600,1723179047039,-500.0,0.00027397,7]
[334541601,1723179047049,-500.0,0.00027397,7]
[334541602,1723179047059,-242.60364154,0.00027397,7]
[334541603,1723179047068,-500.0,0.00027397,7]
[334541604,1723179047079,-505.5,0.00027397,7]
[334541605,1723179047088,-507.29360755,0.00027397,7]
[334541606,1723179047098,-500.0,0.00027397,7]
[334541607,1723179047107,-504.81477913,0.00027397,7]
[334541608,1723179047117,-290.519129,0.00027397,7]
[334541609,1723179047127,-500.0,0.00027397,7]
[334541610,1723179047136,-290.519129,0.00027397,7]
[334541611,1723179047147,-151.0,0.00027397,7]
[334541612,1723179047158,-544.1,0.00027397,7]
[334541613,1723179047168,-520.42,0.00027397,7]
[334541614,1723179047177,-151.0,0.00027397,7]
[334541615,1723179047186,-622.79,0.00027397,7]
[334541616,1723179047196,-500.0,0.00027397,7]
[334541617,1723179047205,-500.0,0.00027397,7]
[334541618,1723179047215,-223.94380222,0.00027397,7]
[334541619,1723179047226,-855.13,0.00027397,7]
[334541620,1723179047236,-507.42949052,0.00027397,7]
[334541621,1723179047245,-500.0,0.00027397,7]
[334541622,1723179047254,-500.0,0.00027397,7]
[334541623,1723179047264,-928.09,0.00027397,7]
[334541624,1723179047273,-500.0,0.00027397,7]
[334541625,1723179047282,-500.0,0.00027397,7]
[334541626,1723179047292,-505.1044146,0.00027397,7]
[334541627,1723179047301,-502.87492223,0.00027397,7]
[334541628,1723179047310,-503.45149386,0.00027397,7]
[334541629,1723179047320,-500.0,0.00027397,7]
[334541630,1723179047329,-500.0,0.00027397,7]
[334541631,1723179047339,-500.0,0.00027397,7]
[334541632,1723179047348,-503.07439885,0.00027397,7]
[334541633,1723179047358,-539.68,0.00027397,7]
[334541634,1723179047367,-500.0,0.00027397,7]
[334541635,1723179047376,-500.0,0.00027397,7]
[334541636,1723179047385,-729.88,0.00027397,7]
[334541637,1723179047394,-151.0,0.00027397,7]
[334541638,1723179047403,-500.0,0.00027397,7]
[334541639,1723179047413,-500.0,0.00027397,7]
[334541640,1723179047422,-500.0,0.00027397,7]
[334541641,1723179047431,-500.0,0.00027397,7]
[334541642,1723179047441,-500.0,0.00027397,7]
[334541643,1723179047450,-502.67851192,0.00027397,7]
[334541644,1723179047460,-500.0,0.00027397,7]
[334541645,1723179047469,-151.0,0.00027397,7]
[334541646,1723179047484,-502.20207638,0.00027397,7]
[334541647,1723179047499,-500.0,0.00027397,7]
[334541648,1723179047508,-500.0,0.00027397,7]
[334541649,1723179047517,-500.0,0.00027397,7]
[334541650,1723179047526,-500.0,0.00027397,7]
[334541651,1723179047535,-500.0,0.00027397,7]
[334541652,1723179047544,-500.0,0.00027397,7]
[334541653,1723179047553,-500.0,0.00027397,7]
[334541654,1723179047562,-503.72203065,0.00027397,7]
[334541655,1723179047571,-767.93,0.00027397,7]
[334541656,1723179047580,-504.80582823,0.00027397,7]
[334541657,1723179047589,-151.0,0.00027397,7]
[334541658,1723179047598,-500.0,0.00027397,7]
[334541659,1723179047607,-500.0,0.00027397,7]
[334541660,1723179047616,-500.0,0.00027397,7]
[334541661,1723179047625,-500.0,0.00027397,7]
[334541662,1723179047635,-500.0,0.00027397,7]
[334541663,1723179047644,-503.44400488,0.00027397,7]
[334541664,1723179047653,-500.0,0.00027397,7]
[334541665,1723179047663,-500.0,0.00027397,7]
[334541666,1723179047672,-506.51715667,0.00027397,7]
[334541667,1723179047682,-502.9727646,0.00027397,7]
[334541668,1723179047690,-500.0,0.00027397,7]
[334541669,1723179047699,-500.0,0.00027397,7]
[334541670,1723179047709,-503.37591549,0.00027397,7]
[334541671,1723179047718,-500.0,0.00027397,7]
[334541672,1723179047729,-500.0,0.00027397,7]
[334541673,1723179047738,-500.0,0.00027397,7]
[334541674,1723179047747,-639.21,0.00027397,7]
[334541675,1723179047756,-1028.46,0.00027397,7]
[334541676,1723179047765,-506.66144435,0.00027397,7]
[334541677,1723179047775,-500.0,0.00027397,7]
[334541678,1723179047784,-500.0,0.00027397,7]
[334541679,1723179047793,-1139.48,0.00027397,7]
[334541680,1723179047802,-500.0,0.00027397,7]
[334541681,1723179047811,-502.33390638,0.00027397,7]
[334541682,1723179047820,-499.3002203,0.00027397,7]
[334541683,1723179047829,-517.45880423,0.00027397,7]
[334541684,1723179047838,-598.42710322,0.00027397,7]
[334541685,1723179047847,-500.0,0.00027397,7]
[334541686,1723179047856,-500.0,0.00027397,7]
[334541687,1723179047867,-500.0,0.00027397,7]
[334541688,1723179047877,-151.0,0.00027397,7]
[334541689,1723179047886,-153.846739,0.00027397,7]
[334541690,1723179047895,-1385.70783325,0.00027397,7]
[334541691,1723179048297,205.31051458,0.0001212,2]
[334541692,1723179048349,157.05367525,0.0001212,2]
[334541693,1723179048381,-1734.41216675,0.00027397,7]
[334541694,1723179048390,-558.98,0.00027397,7]
[334541695,1723179048400,-500.0,0.00027397,7]
[334541696,1723179048409,-151.821473,0.00027397,7]
[334541697,1723179048419,-500.0,0.00027397,7]
[334541698,1723179048428,-500.0,0.00027397,7]
[334541699,1723179048437,-500.97639959,0.00027397,7]
[334541700,1723179048447,-500.0,0.00027397,7]
[334541701,1723179048456,-503.72581299,0.00027397,7]
[334541702,1723179048466,-728.96,0.00027397,7]
[334541703,1723179048478,-500.0,0.00027397,7]
[334541704,1723179048488,-610.10532554,0.00027397,7]
[334541705,1723179048497,-1166.87,0.00027397,7]
[334541706,1723179048506,-504.09366998,0.00027397,7]
[334541707,1723179048516,-569.06,0.00027397,7]
[334541708,1723179048525,-500.0,0.00027397,7]
[334541709,1723179048536,-500.86905658,0.00027397,7]
[334541710,1723179048545,-864.96,0.00027397,7]
[334541711,1723179048555,-500.0,0.00027397,7]
[334541712,1723179048565,-500.0,0.00027397,7]
[334541713,1723179048574,-151.0,0.00027397,7]
[334541714,1723179048584,-151.0,0.00027397,7]
[334541715,1723179048594,-151.0,0.00027397,7]
[334541716,1723179048603,-151.0,0.00027397,7]
[334541717,1723179048613,-504.12822574,0.00027397,7]
[334541718,1723179048622,-151.0,0.00027397,7]
[334541719,1723179048632,-151.0,0.00027397,7]
[334541720,1723179048642,-482.33552864,0.00027397,7]
[334541721,1723179048651,-503.56472184,0.00027397,7]
[334541722,1723179048661,-500.0,0.00027397,7]
[334541723,1723179048671,-500.0,0.00027397,7]
[334541724,1723179048680,-151.0,0.00027397,7]
[334541725,1723179048690,-151.0,0.00027397,7]
[334541726,1723179048699,-151.0,0.00027397,7]
[334541727,1723179048708,-151.0,0.00027397,7]
[334541728,1723179048718,-731.44,0.00027397,7]
[334541729,1723179048729,-505.21088414,0.00027397,7]
[334541730,1723179048739,-500.0,0.00027397,7]
[334541731,1723179048748,-506.29977662,0.00027397,7]
[334541732,1723179048758,-151.0,0.00027397,7]
[334541733,1723179048768,-151.0,0.00027397,7]
[334541734,1723179048777,-500.0,0.00027397,7]
[334541735,1723179048787,-523.71843574,0.00027397,7]
[334541736,1723179048797,-503.67850451,0.00027397,7]
[334541737,1723179048808,-500.0,0.00027397,7]
[334541738,1723179048818,-500.0,0.00027397,7]
[334541739,1723179048829,-597.115207,0.00027397,7]
[334541740,1723179048839,-597.115207,0.00027397,7]
[334541741,1723179048850,-500.0,0.00027397,7]
[334541742,1723179048859,-597.115207,0.00027397,7]
[334541743,1723179048868,-500.0,0.00027397,7]
[334541744,1723179048878,-597.115207,0.00027397,7]
[334541745,1723179048888,-500.0,0.00027397,7]
[334541746,1723179048898,-501.49986388,0.00027397,7]
[334541747,1723179048908,-502.15135372,0.00027397,7]
[334541748,1723179048918,-151.0,0.00027397,7]
[334541749,1723179048928,-151.0,0.00027397,7]
[334541750,1723179048937,-500.0,0.00027397,7]
[334541751,1723179048948,-504.4671302,0.00027397,7]
[334541752,1723179048961,-151.0,0.00027397,7]
[334541753,1723179048970,-500.0,0.00027397,7]
[334541754,1723179048984,-151.0,0.00027397,7]
[334541755,1723179048993,-500.0,0.00027397,7]
[334541756,1723179049003,-500.0,0.00027397,7]
[334541757,1723179049013,-329.4653978,0.00027397,7]
[334541758,1723179049022,-500.0,0.00027397,7]
[334541759,1723179049032,-500.0,0.00027397,7]
[334541760,1723179049042,-630.27,0.00027397,7]
[334541761,1723179049053,-500.0,0.00027397,7]
[334541762,1723179049062,-500.0,0.00027397,7]
[334541763,1723179049072,-500.0,0.00027397,7]
[334541764,1723179049081,-1343.08,0.00027397,7]
[334541765,1723179049091,-500.0,0.00027397,7]
[334541766,1723179049101,-500.0,0.00027397,7]
[334541767,1723179049110,-568.41,0.00027397,7]
[334541768,1723179049120,-154.693268,0.00027397,7]
[334541769,1723179049129,-1073.36,0.00027397,7]
[334541770,1723179049139,-500.0,0.00027397,7]
[334541771,1723179049148,-506.58495556,0.00027397,7]
[334541772,1723179049158,-500.0,0.00027397,7]
[334541773,1723179049167,-504.29586326,0.00027397,7]
[334541774,1723179049177,-500.0,0.00027397,7]
[334541775,1723179049187,-202.27079176,0.00027397,7]
[334541776,1723179049197,-1458.62,0.00027397,7]
[334541777,1723179049207,-501.86751424,0.00027397,7]
[334541778,1723179049217,-508.46621631,0.00027397,7]
[334541779,1723179049230,-504.23786044,0.00027397,7]
[334541780,1723179049239,-570.09903799,0.00027397,7]
[334541781,1723179049249,-501.54018615,0.00027397,7]
[334541782,1723179049259,-501.44416276,0.00027397,7]
[334541783,1723179049268,-507.47206711,0.00027397,7]
[334541784,1723179049279,-500.0,0.00027397,7]
[334541785,1723179049289,-503.71648086,0.00027397,7]
[334541786,1723179049299,-995.77,0.00027397,7]
[334541787,1723179049309,-1282.11,0.00027397,7]
[334541788,1723179049320,-525.24,0.00027397,7]
[334541789,1723179049329,-529.46,0.00027397,7]
[334541790,1723179049341,-503.26347303,0.00027397,7]
[334541791,1723179049351,-501.52004904,0.00027397,7]
[334541792,1723179049361,-525.828866,0.00027397,7]
[334541793,1723179049372,-525.828866,0.00027397,7]
[334541794,1723179049382,-503.34154321,0.00027397,7]
[334541795,1723179049391,-503.79819152,0.00027397,7]
[334541796,1723179049401,-501.71723933,0.00027397,7]
[334541797,1723179049411,-501.37511025,0.00027397,7]
[334541798,1723179049421,-525.828866,0.00027397,7]
[334541799,1723179049432,-525.828866,0.00027397,7]
[334541800,1723179049442,-520.06,0.00027397,7]
[334541801,1723179049453,-1411.12,0.00027397,7]
[334541802,1723179049463,-504.36948652,0.00027397,7]
[334541803,1723179049473,-504.2559101,0.00027397,7]
[334541804,1723179049484,-505.73412405,0.00027397,7]
[334541805,1723179049494,-5203.53,0.00027397,7]
[334541806,1723179049504,-500.0,0.00027397,7]
[334541807,1723179049515,-151.0,0.00027397,7]
[334541808,1723179049528,-1235.21,0.00027397,7]
[334541809,1723179049538,-151.0,0.00027397,7]
[334541810,1723179049549,-500.0,0.00027397,7]
[334541811,1723179049559,-500.0,0.00027397,7]
[334541812,1723179049569,-504.75712673,0.00027397,7]
[334541813,1723179049579,-503.75478536,0.00027397,7]
[334541814,1723179049590,-567.72860209,0.00027397,7]
[334541815,1723179049601,-501.61304234,0.00027397,7]
[334541816,1723179049610,-500.0,0.00027397,7]
[334541817,1723179049621,-500.0,0.00027397,7]
[334541818,1723179049631,-1682.64,0.00027397,7]
[334541819,1723179049640,-500.0,0.00027397,7]
[334541820,1723179049651,-502.99488785,0.00027397,7]
[334541821,1723179049661,-500.0,0.00027397,7]
[334541822,1723179049671,-576.74,0.00027397,7]
[334541823,1723179049682,-427.859414,0.00027397,7]
[334541824,1723179049691,-427.859414,0.00027397,7]
[334541825,1723179049702,-160.886104,0.00027397,7]
[334541826,1723179049712,-160.886104,0.00027397,7]
[334541827,1723179049723,-618.79473176,0.00027397,7]
[334541828,1723179049736,-7412.01,0.00027397,7]
[334541829,1723179049747,-427.859414,0.00027397,7]
[334541830,1723179049758,-427.859414,0.00027397,7]
[334541831,1723179049768,-160.886104,0.00027397,7]
[334541832,1723179049778,-504.29772295,0.00027397,7]
[334541833,1723179049789,-502.83992933,0.00027397,7]
[334541834,1723179049799,-160.886104,0.00027397,7]
[334541835,1723179049809,-500.0,0.00027397,7]
[334541836,1723179049819,-151.0,0.00027397,7]
[334541837,1723179049828,-151.0,0.00027397,7]
[334541838,1723179049838,-500.0,0.00027397,7]
[334541839,1723179049847,-500.0,0.00027397,7]
[334541840,1723179049857,-500.0,0.00027397,7]
[334541841,1723179049866,-500.0,0.00027397,7]
[334541842,1723179049875,-151.0,0.00027397,7]
[334541843,1723179049885,-504.36595385,0.00027397,7]
[334541844,1723179049895,-151.0,0.00027397,7]
[334541845,1723179049904,-2551.11,0.00027397,7]
[334541846,1723179049913,-500.0,0.00027397,7]
[334541847,1723179049923,-500.0,0.00027397,7]
[334541848,1723179049932,-151.0,0.00027397,7]
[334541849,1723179049942,-504.9600289,0.00027397,7]
[334541850,1723179049953,-151.0,0.00027397,7]
[334541851,1723179049965,-500.0,0.00027397,7]
[334541852,1723179049976,-500.0,0.00027397,7]
[334541853,1723179049985,-501.70044564,0.00027397,7]
[334541854,1723179049996,-500.0,0.00027397,7]
[334541855,1723179050006,-592.19,0.00027397,7]
[334541856,1723179050015,-573.02,0.00027397,7]
[334541857,1723179050025,-866.78,0.00027397,7]
[334541858,1723179050035,-862.76,0.00027397,7]
[334541859,1723179050044,-1572.92,0.00027397,7]
[334541860,1723179050054,-519.42987034,0.00027397,7]
[334541861,1723179050064,-151.0,0.00027397,2]
[334541862,1723179050073,-151.0,0.00027397,2]
[334541863,1723179050082,-1996.68,0.00027397,7]
[334541864,1723179050095,-151.0,0.00027397,2]
[334541865,1723179050106,-151.0,0.00027397,2]
[334541866,1723179050116,-599.52646976,0.00027397,7]
[334541867,1723179050126,-500.0,0.00027397,7]
[334541868,1723179050136,-500.0,0.00027397,7]
[334541869,1723179050146,-503.560753,0.00027397,7]
[334541870,1723179050155,-181.922152,0.00027397,7]
[334541871,1723179050165,-181.922152,0.00027397,7]
[334541872,1723179050175,-151.0,0.00027397,7]
[334541873,1723179050184,-151.0,0.00027397,7]
[334541874,1723179050194,-500.0,0.00027397,7]
[334541875,1723179050204,-562.66,0.00027397,7]
[334541876,1723179050214,-181.922152,0.00027397,7]
[334541877,1723179050223,-181.922152,0.00027397,7]
[334541878,1723179050234,-592.78,0.00027397,7]
[334541879,1723179050245,-726.32,0.00027397,7]
[334541880,1723179050255,-500.0,0.00027397,7]
[334541881,1723179050266,-151.0,0.00027397,7]
[334541882,1723179050277,-151.0,0.00027397,7]
[334541883,1723179050286,-500.0,0.00027397,7]
[334541884,1723179050296,-629.87,0.00027397,7]
[334541885,1723179050306,-1003.5,0.00027397,7]
[334541886,1723179050315,-710.48,0.00027397,7]
[334541887,1723179050326,-500.0,0.00027397,7]
[334541888,1723179050336,-500.0,0.00027397,7]
[334541889,1723179050346,-500.0,0.00027397,7]
[334541890,1723179050356,-500.0,0.00027397,7]
[334541891,1723179050366,-594.4,0.00027397,7]
[334541892,1723179050375,-564.489162,0.00027397,7]
[334541893,1723179050385,-564.489162,0.00027397,7]
[334541894,1723179050395,-502.74730644,0.00027397,7]
[334541895,1723179050405,-564.489162,0.00027397,7]
[334541896,1723179050416,-564.489162,0.00027397,7]
[334541897,1723179050558,-151.0,0.00027397,7]
[334541898,1723179050568,-151.0,0.00027397,7]
[334541899,1723179050578,-501.38200263,0.00027397,7]
[334541900,1723179050588,-500.0,0.00027397,7]
[334541901,1723179050597,-1681.4,0.00027397,7]
[334541902,1723179050607,-759.86,0.00027397,7]
[334541903,1723179050616,-500.0,0.00027397,7]
[334541904,1723179050624,-500.0,0.00027397,7]
[334541905,1723179050633,-501.38413416,0.00027397,7]
[334541906,1723179050643,-500.0,0.00027397,7]
[334541907,1723179050652,-500.0,0.00027397,7]
[334541908,1723179050661,-681.0,0.00027397,7]
[334541909,1723179050670,-681.0,0.00027397,7]
[334541910,1723179050680,-681.0,0.00027397,7]
[334541911,1723179050690,-939.87,0.00027397,7]
[334541912,1723179050699,-681.0,0.00027397,7]
[334541913,1723179050709,-681.0,0.00027397,7]
[334541914,1723179050718,-681.0,0.00027397,7]
[334541915,1723179050728,-681.0,0.00027397,7]
[334541916,1723179050738,-681.0,0.00027397,7]
[334541917,1723179050748,-681.0,0.00027397,7]
[334541918,1723179050757,-681.0,0.00027397,7]
[334541919,1723179050766,-500.0,0.00027397,7]
[334541920,1723179050776,-681.0,0.00027397,7]
[334541921,1723179050786,-485.19745579,0.00027397,7]
[334541922,1723179050795,-681.0,0.00027397,7]
[334541923,1723179050804,-681.0,0.00027397,7]
[334541924,1723179050813,-681.0,0.00027397,7]
[334541925,1723179050822,-681.0,0.00027397,7]
[334541926,1723179050831,-681.0,0.00027397,7]